bitfinex-derivatives/quotes_SOLF0:USTF0_20251228
["timestamp","ask_amount","ask_price","bid_price","bid_amount"]
[1766948818590,0.00475437,123.24,123.21,0.00259513]
[1766948821195,40.03320013,123.24,123.15,38.84]
[1766948821494,40.02844576,123.24,123.15,38.84]
[1766948822294,0.05443615,123.21,123.18,0.0595251]
[1766948828494,0.05443615,123.21,123.18,1.57862653]
[1766948830602,37.47910143,123.26,123.2,1.51910143]
[1766948831506,37.47910143,123.26,123.22,0.05295645]
[1766948832696,37.47910143,123.25,123.22,0.00295645]
[1766948833503,35.96,123.25,123.22,0.00295645]
[1766948833698,0.05291335,123.25,123.22,1.52205788]
[1766948833904,0.05291335,123.25,123.23,1.51910143]
[1766948834611,0.05291335,123.25,123.22,0.00295645]
[1766948838410,35.96,123.28,123.22,0.00295645]
[1766948839108,35.96,123.28,123.22,39.20295645]
[1766948850524,43.2656,123.28,123.22,39.20295645]
[1766948851918,43.2656,123.28,123.22,0.00295645]
[1766948853019,43.9062,123.27,123.22,0.00295645]
[1766948853215,43.9062,123.27,123.23,0.0582036]
[1766948856429,7.3046,123.3,123.23,46.5666036]
[1766948856632,43.9046,123.3,123.25,2.37031509]
[1766948856928,43.9046,123.3,123.26,0.05830726]
[1766948857329,36.6,123.3,123.26,0.05830726]
[1766948886963,43.9044,123.3,123.26,0.05830726]
[1766948901477,34.2,123.28,123.22,36.65031509]
[1766948902377,0.05483834,123.26,123.24,0.05262942]
[1766948904181,34.2,123.28,123.24,0.05262942]
[1766948911692,34.2,123.28,123.24,2.42294451]
[1766948912797,34.2,123.3,123.24,36.70294451]
[1766948913090,34.2,123.3,123.26,0.05310397]
[1766948920291,34.2,123.3,123.26,0.00310397]
[1766948921195,0.05346892,123.29,123.26,0.00310397]
[1766948921399,34.2,123.28,123.26,0.00310397]
[1766948929906,35.71734447,123.28,123.2,15.13258842]
[1766948930105,32.77734447,123.26,123.19,34.89734447]
[1766948930505,31.26,123.26,123.19,34.89734447]
[1766948930706,31.26,123.26,123.2,1.51734447]
[1766948930911,0.05657289,123.24,123.22,0.05835537]
[1766948931111,31.31657289,123.24,123.22,0.05835537]
[1766948932217,31.31657289,123.24,123.2,1.51734447]
[1766948933021,31.31657289,123.24,123.19,42.20764447]
[1766948933313,31.31657289,123.24,123.2,0.05657178]
[1766948933819,31.31657289,123.24,123.21,1.51734447]
[1766948936020,31.31657289,123.24,123.2,8.88401625]
[1766948936721,31.31657289,123.24,123.21,1.51734447]
[1766948937422,7.3056,123.28,123.22,1.51734447]
[1766948937621,8.82214447,123.3,123.23,1.51734447]
[1766948937923,5.9631291,123.29,123.23,1.51734447]
[1766948938124,13.2681291,123.29,123.23,1.51734447]
[1766948938320,7.305,123.29,123.23,1.51734447]
[1766948938623,0.05835537,123.27,123.23,1.51734447]
[1766948939521,33.02,123.26,123.24,0.00094642]
[1766948949028,32.73073712,123.26,123.24,0.00094642]
[1766948955835,32.73073712,123.26,123.2,1.51734447]
[1766948956040,32.73073712,123.26,123.2,31.73734447]
[1766948956840,0.05642113,123.24,123.22,0.05496192]
[1766948970245,0.05642113,123.24,123.22,1.57230639]
[1766948970443,31.47,123.27,123.23,1.51734447]
[1766948970957,31.47,123.27,123.24,1.51734447]
[1766948971452,31.52242276,123.27,123.24,1.57319188]
[1766948972951,0.05242276,123.27,123.25,1.51734447]
[1766948974250,31.47,123.29,123.25,8.82444447]
[1766948975237,0.06029391,123.28,123.25,8.82444447]
[1766948975442,0.06029391,123.28,123.25,1.51734447]
[1766948976450,0.06029391,123.28,123.24,32.64669273]
[1766948979148,31.47,123.33,123.27,30.22]
[1766948979753,31.47,123.36,123.28,32.59084532]
[1766948979941,31.47,123.35,123.28,32.59084532]
[1766948980345,31.47,123.35,123.3,0.05797073]
[1766948982755,31.47,123.37,123.31,32.59084532]
[1766948983955,0.05184047,123.35,123.33,0.05877208]
[1766948996064,0.00184047,123.35,123.33,29.58877208]
[1766948996260,28.11,123.39,123.33,29.58877208]
[1766948997169,28.11,123.38,123.33,29.58877208]
[1766948999875,7.2979,123.41,123.33,29.58877208]
[1766949000180,28.11,123.42,123.36,29.58115332]
[1766949000378,28.11,123.47,123.38,31.95874607]
[1766949000580,2.37084532,123.48,123.36,7.3007]
[1766949000581,28.11,123.44,123.36,7.3007]
[1766949000880,30.48084532,123.44,123.36,39.20154532]
[1766949001270,30.48084532,123.44,123.37,29.53]
[1766949001775,0.06084962,123.42,123.39,0.05182438]
[1766949002976,0.06084962,123.42,123.39,29.58182438]
[1766949003477,0.06084962,123.42,123.39,31.9526697]
[1766949003676,0.06084962,123.42,123.39,39.2514697]
[1766949003976,0.06084962,123.42,123.4,29.53]
[1766949004373,0.01391684,123.42,123.4,29.53]
[1766949005486,28.11,123.45,123.4,29.53]
[1766949005681,28.11,123.45,123.39,9.7214697]
[1766949005867,28.11,123.48,123.4,36.828]
[1766949006172,28.11,123.46,123.4,29.53]
[1766949006379,28.11,123.44,123.37,29.53]
[1766949006578,28.11,123.44,123.38,2.37084532]
[1766949007078,28.11,123.46,123.38,31.90084532]
[1766949007285,28.11,123.46,123.38,29.53]
[1766949007476,0.06046366,123.43,123.41,0.0528825]
[1766949008983,28.11,123.47,123.41,29.5828825]
[1766949010580,28.11,123.47,123.42,31.90084532]
[1766949010780,28.11,123.47,123.41,7.3504825]
[1766949010781,28.11,123.5,123.43,29.53]
[1766949010977,28.11,123.5,123.45,0.05954959]
[1766949012177,28.11,123.52,123.45,29.58954959]
[1766949012376,28.11,123.52,123.47,2.37084532]
[1766949012577,28.11,123.52,123.48,0.05833982]
[1766949014378,28.11,123.5,123.44,36.8256]
[1766949014575,28.11,123.5,123.44,29.53]
[1766949015077,27.76,123.48,123.4,31.90084532]
[1766949015275,0.05488177,123.45,123.43,0.05764718]
[1766949016675,27.76,123.48,123.43,7.35404718]
[1766949016879,27.76,123.5,123.44,2.37084532]
[1766949017387,27.76,123.5,123.44,9.66674532]
[1766949017588,27.76,123.5,123.44,36.68674532]
[1766949017882,27.76,123.5,123.46,0.05969288]
[1766949019283,27.76,123.5,123.42,34.3168]
[1766949019284,30.13084532,123.5,123.42,34.3168]
[1766949020179,0.05620634,123.47,123.45,0.06069906]
[1766949025088,27.76,123.51,123.45,0.06069906]
[1766949025277,27.76,123.51,123.45,2.37084532]
[1766949025984,27.76,123.53,123.46,34.3148]
[1766949026286,27.76,123.53,123.48,0.05974506]
[1766949027587,27.76,123.55,123.49,29.39084532]
[1766949027884,29.52625872,123.58,123.51,29.44879439]
[1766949028488,27.76,123.58,123.51,29.44879439]
[1766949028995,27.76,123.58,123.51,36.74059439]
[1766949029487,27.76,123.58,123.51,29.44879439]
[1766949032277,27.76,123.61,123.55,2.37084532]
[1766949032477,27.76,123.61,123.57,0.05254436]
[1766949033592,27.76,123.64,123.57,2.42338968]
[1766949033888,27.76,123.64,123.59,2.42260568]
[1766949034487,27.76,123.66,123.59,2.42260568]
[1766949034690,27.81741525,123.64,123.59,2.37084532]
[1766949034994,27.81741525,123.64,123.58,2.37084532]
[1766949035591,27.81741525,123.64,123.6,0.05922669]
[1766949035989,0.05741525,123.64,123.6,0.05922669]
[1766949036193,0.05741525,123.64,123.6,2.43007201]
[1766949036487,0.05741525,123.64,123.61,4.03984067]
[1766949036682,0.05741525,123.64,123.6,0.05922669]
[1766949038193,0.05741525,123.64,123.6,4.09906736]
[1766949038795,0.05741525,123.64,123.61,27.02]
[1766949039095,1.87181641,123.68,123.63,4.03984067]
[1766949039498,1.87181641,123.68,123.61,31.05984067]
[1766949039692,1.87181641,123.68,123.61,38.34554067]
[1766949039891,1.87181641,123.68,123.63,0.05993909]
[1766949040092,29.63181641,123.68,123.63,0.05993909]
[1766949040890,29.63181641,123.68,123.57,31.05984067]
[1766949041300,7.2836,123.66,123.57,31.05984067]
[1766949041487,27.76,123.65,123.57,31.05984067]
[1766949041691,7.2836,123.66,123.57,31.05984067]
[1766949041892,0.06080531,123.63,123.6,0.05162212]
[1766949042100,0.06080531,123.63,123.6,0.05359326]
[1766949042692,27.76,123.67,123.6,0.05359326]
[1766949043402,27.76,123.67,123.6,27.07359326]
[1766949044089,27.76,123.66,123.6,0.05359326]
[1766949044589,27.76,123.65,123.6,0.05359326]
[1766949044790,29.63181641,123.68,123.6,0.05359326]
[1766949044994,29.63181641,123.68,123.63,0.05938088]
[1766949047403,29.63181641,123.68,123.55,27.24]
[1766949047404,28.47,123.65,123.55,27.24]
[1766949047999,28.47,123.61,123.52,31.27984067]
[1766949048298,0.06179497,123.58,123.55,0.05287441]
[1766949048494,28.47,123.61,123.55,0.05287441]
[1766949049307,28.47,123.61,123.55,0.00287441]
[1766949049509,1.87181641,123.68,123.38,534.77348842]
[1766949049510,4.03984067,123.66,123.46,27.24]
[1766949049697,4.03984067,123.57,123.46,27.24]
[1766949049902,24.39,123.63,123.49,27.24]
[1766949050107,7.2873,123.59,123.5,27.24]
[1766949050306,24.29,123.65,123.52,4.03984067]
[1766949050607,0.05615078,123.6,123.52,4.03984067]
[1766949050812,7.2865,123.61,123.52,4.03984067]
[1766949051012,11.32634067,123.61,123.5,31.27984067]
[1766949051214,4.03984067,123.61,123.5,31.27984067]
[1766949051601,4.03984067,123.61,123.54,0.05153927]
[1766949051815,0.05116164,123.57,123.54,0.05153927]
[1766949057210,0.05116164,123.57,123.49,27.24]
[1766949057414,4.03984067,123.6,123.49,27.24]
[1766949057607,7.2881,123.58,123.49,27.24]
[1766949058114,0.06037219,123.55,123.52,0.05974505]
[1766949060811,1.51119609,123.54,123.47,27.63]
[1766949061020,1.51119609,123.54,123.47,29.14119609]
[1766949061906,0.060435,123.52,123.49,0.06027129]
[1766949062111,0.05618776,123.52,123.49,0.05159408]
[1766949068913,0.05618776,123.52,123.44,27.63]
[1766949069117,4.04896455,123.53,123.44,27.63]
[1766949070117,0.05698339,123.5,123.47,0.06121341]
[1766949071111,7.34958339,123.5,123.47,0.06121341]
[1766949073616,7.2933,123.49,123.47,0.06121341]
[1766949074912,7.2933,123.49,123.41,27.63]
[1766949075820,0.05271587,123.46,123.44,0.0571092]
[1766949079121,7.2933,123.49,123.44,0.0571092]
[1766949079717,4.04896455,123.54,123.44,28.2671092]
[1766949079918,4.04896455,123.54,123.44,28.21]
[1766949080117,0.0511987,123.5,123.48,0.05988544]
[1766949080329,0.0511987,123.5,123.48,0.01988544]
[1766949087020,0.0511987,123.5,123.43,28.21]
[1766949088026,0.0511987,123.5,123.45,0.06151864]
[1766949088623,8.85667695,123.5,123.45,0.06151864]
[1766949089925,7.3437987,123.5,123.45,0.06151864]
[1766949099929,7.2932,123.49,123.45,0.06151864]
[1766949100131,2.41490352,123.5,123.45,0.06151864]
[1766949100734,0.0511987,123.5,123.45,0.06151864]
[1766949100940,7.3440987,123.5,123.45,0.06151864]
[1766949106752,0.0511987,123.5,123.45,29.80151864]
[1766949109057,0.0511987,123.5,123.45,0.06151864]
[1766949109856,7.3437987,123.5,123.45,0.06151864]
[1766949114862,7.3437987,123.5,123.45,31.15151864]
[1766949115958,7.3437987,123.5,123.45,0.06151864]
[1766949119459,9.70750352,123.5,123.45,0.06151864]
[1766949120865,2.36370482,123.48,123.43,31.09]
[1766949121161,8.35025653,123.48,123.41,31.09]
[1766949121350,2.36370482,123.48,123.37,15.13258842]
[1766949121556,2.36370482,123.46,123.38,31.09]
[1766949122068,0.05163227,123.43,123.41,0.05970226]
[1766949130468,0.00163227,123.43,123.41,0.05970226]
[1766949143678,0.00163227,123.43,123.41,30.50970226]
[1766949145480,7.2949,123.46,123.41,30.50970226]
[1766949146384,0.05421206,123.45,123.41,30.50970226]
[1766949149189,7.34981206,123.45,123.41,30.50970226]
[1766949149490,7.34981206,123.45,123.41,0.05970226]
[1766949151189,7.34981206,123.45,123.41,30.50970226]
[1766949151386,0.05421206,123.45,123.41,30.50970226]
[1766949157687,0.05421206,123.45,123.41,0.05970226]
[1766949158489,1.56839528,123.45,123.41,0.05970226]
[1766949162494,1.51418322,123.44,123.41,0.05970226]
[1766949164404,1.56839528,123.45,123.41,0.05970226]
[1766949165098,1.51418322,123.44,123.41,0.05970226]
[1766949178717,8.86389528,123.45,123.41,31.39970226]
[1766949178917,104.58389528,123.45,123.41,31.39970226]
[1766949181005,104.58389528,123.45,123.41,0.05970226]
[1766949182713,8.86389528,123.45,123.41,31.39970226]
[1766949182919,103.06971206,123.45,123.41,31.39970226]
[1766949188220,95.77421206,123.45,123.41,31.39970226]
[1766949190122,95.77421206,123.45,123.41,32.91388548]
[1766949193325,95.77421206,123.45,123.41,31.39970226]
[1766949193621,61.66842952,123.45,123.41,31.39970226]
[1766949193821,1.51418322,123.43,123.41,0.05970226]
[1766949194723,1.57545004,123.43,123.41,0.05970226]
[1766949194925,0.06126682,123.43,123.41,0.05970226]
[1766949195120,1.57545004,123.43,123.41,0.05970226]
[1766949195327,1.57545004,123.43,123.39,31.34]
[1766949196330,1.57545004,123.43,123.4,0.0527816]
[1766949196730,0.06126682,123.43,123.4,0.0527816]
[1766949196927,0.06126682,123.43,123.4,31.5227816]
[1766949197928,0.00126682,123.43,123.4,33.03696482]
[1766949210229,0.00126682,123.43,123.4,31.5227816]
[1766949210433,0.00126682,123.43,123.4,33.03696482]
[1766949211136,0.00126682,123.43,123.4,31.5227816]
[1766949214647,0.00126682,123.43,123.4,33.03696482]
[1766949219450,0.00126682,123.43,123.42,31.47]
[1766949258890,42.474,123.48,123.42,31.47]
[1766949259082,39.64921315,123.47,123.42,31.47]
[1766949259281,33.65,123.47,123.42,31.47]
[1766949259793,0.05765955,123.46,123.43,0.05331841]
[1766949264291,0.05765955,123.46,123.43,36.88331841]
[1766949272799,7.294,123.48,123.43,36.88331841]
[1766949273387,7.2929,123.5,123.43,36.88331841]
[1766949273593,35.70679534,123.53,123.47,36.83]
[1766949273793,33.65,123.51,123.44,36.83]
[1766949273995,33.7064455,123.51,123.45,36.83]
[1766949274290,33.65,123.51,123.45,36.83]
[1766949274892,0.05662435,123.49,123.47,0.05430706]
[1766949296120,35.16254817,123.51,123.47,0.05430706]
[1766949297025,0.06002881,123.5,123.47,0.05430706]
[1766949301221,37.00254817,123.48,123.42,37.1]
[1766949301526,37.00254817,123.47,123.42,37.1]
[1766949302317,0.05812636,123.46,123.43,0.06063236]
[1766949316036,0.05812636,123.46,123.43,37.11063236]
[1766949316338,45.6735,123.49,123.43,38.62318053]
[1766949317234,0.05697922,123.47,123.43,38.62318053]
[1766949321043,0.05697922,123.47,123.43,37.11063236]
[1766949321345,0.05697922,123.47,123.43,38.62318053]
[1766949323742,0.05697922,123.47,123.43,37.11063236]
[1766949327842,0.05697922,123.47,123.43,38.62318053]
[1766949329047,0.05697922,123.47,123.43,37.11063236]
[1766949330347,47.18514817,123.5,123.43,38.62318053]
[1766949330935,45.6726,123.5,123.43,38.62318053]
[1766949331442,0.05355745,123.48,123.43,38.62318053]
[1766949331645,0.05355745,123.48,123.43,37.11063236]
[1766949333549,0.05355745,123.48,123.43,38.62318053]
[1766949333850,0.05355745,123.48,123.43,37.11063236]
[1766949334052,1.51254817,123.45,123.43,0.06063236]
[1766949334250,1.51254817,123.44,123.38,37.05]
[1766949334550,1.51254817,123.43,123.38,37.05]
[1766949334745,45.6763,123.44,123.38,37.05]
[1766949334940,1.51254817,123.43,123.38,37.05]
[1766949335139,1.51254817,123.43,123.39,0.06104741]
[1766949335341,0.06091038,123.42,123.39,37.11104741]
[1766949364381,41.68705655,123.42,123.37,37.2]
[1766949364779,46.5579,123.41,123.35,37.2]
[1766949365488,0.05469552,123.39,123.37,0.05452164]
[1766949365673,7.2971,123.43,123.37,37.25452164]
[1766949365978,46.5571,123.43,123.37,37.25452164]
[1766949366581,0.05419724,123.41,123.37,37.25452164]
[1766949382891,2.36614617,123.45,123.37,37.25452164]
[1766949382892,43.476,123.45,123.37,39.62066781]
[1766949383086,43.476,123.45,123.37,39.56614617]
[1766949384085,0.05212276,123.42,123.4,0.06224892]
[1766949386491,43.4743,123.47,123.4,37.56224892]
[1766949386696,45.84044617,123.47,123.4,37.5]
[1766949387296,36.18,123.46,123.4,37.5]
[1766949387496,0.05809329,123.44,123.42,0.05202116]
[1766949407008,1.57186101,123.44,123.37,1.51376772]
[1766949407305,1.51376772,123.43,123.36,8.81426772]
[1766949407503,1.51376772,123.43,123.37,1.51376772]
[1766949407703,1.51376772,123.44,123.37,1.51376772]
[1766949408104,0.05703917,123.42,123.39,0.06185762]
[1766949409006,0.05703917,123.42,123.39,37.15185762]
[1766949411806,7.2961,123.44,123.39,38.66562534]
[1766949412503,7.2952,123.46,123.41,37.33]
[1766949412710,7.2952,123.46,123.42,0.05110815]
[1766949413305,38.06376772,123.47,123.42,0.05110815]
[1766949413705,0.06085039,123.46,123.42,0.05110815]
[1766949416215,36.61085039,123.46,123.42,0.05110815]
[1766949419925,0.06085039,123.46,123.42,37.38110815]
[1766949422117,36.61085039,123.46,123.42,37.38110815]
[1766949424227,0.06085039,123.46,123.42,37.38110815]
[1766949425425,45.41981811,123.46,123.42,0.05110815]
[1766949426031,43.90605039,123.46,123.42,0.05110815]
[1766949426731,43.90605039,123.46,123.42,37.38110815]
[1766949428833,36.61085039,123.46,123.42,37.38110815]
[1766949429036,0.06085039,123.46,123.42,37.38110815]
[1766949434138,45.41951811,123.46,123.42,0.05110815]
[1766949435934,38.12461811,123.46,123.42,0.00110815]
[1766949436143,40.15376772,123.44,123.42,0.00110815]
[1766949436741,40.15376772,123.43,123.37,36.63]
[1766949436938,27.30642848,123.5,123.37,36.63]
[1766949436939,40.15376772,123.42,123.37,36.63]
[1766949437838,0.05907323,123.41,123.38,0.05588894]
[1766949439638,0.05907323,123.41,123.38,36.68588894]
[1766949460080,38.64,123.45,123.4,36.63]
[1766949460978,0.05177094,123.44,123.41,0.06109785]
[1766949465181,37.18177094,123.44,123.41,0.06109785]
[1766949467584,39.54770992,123.44,123.38,37.24]
[1766949467882,39.49593898,123.44,123.38,37.24]
[1766949468581,0.05579042,123.42,123.4,0.05628846]
[1766949504003,38.71042009,123.46,123.4,37.21628846]
[1766949504206,37.3,123.46,123.4,37.21628846]
[1766949505197,0.0551138,123.44,123.4,37.21628846]
[1766949519215,39.72105278,123.44,123.4,0.05628846]
[1766949520209,39.72105278,123.44,123.38,37.16]
[1766949520620,7.2968,123.43,123.38,37.16]
[1766949520916,44.5968,123.43,123.38,37.16]
[1766949521117,44.5968,123.43,123.39,0.05488544]
[1766949536420,0.0551138,123.44,123.39,40.40931229]
[1766949537323,35.4551138,123.44,123.39,40.40931229]
[1766949537524,35.4551138,123.44,123.39,0.05488544]
[1766949539233,42.7512138,123.44,123.39,0.05488544]
[1766949539424,35.4,123.43,123.39,0.05488544]
[1766949542535,35.4,123.43,123.34,15.13258842]
[1766949542536,36.91442685,123.4,123.33,38.84]
[1766949543040,36.91442685,123.4,123.33,40.35442685]
[1766949543549,44.21302685,123.4,123.35,0.05180933]
[1766949544648,0.05115657,123.39,123.35,0.05180933]
[1766949557455,38.67115657,123.39,123.35,0.05180933]
[1766949562654,47.48478342,123.39,123.35,0.05180933]
[1766949577066,45.97035657,123.39,123.35,0.05180933]
[1766949577265,47.48478342,123.39,123.35,0.05180933]
[1766949581670,38.67115657,123.39,123.35,0.05180933]
[1766949584772,40.18558342,123.39,123.35,0.05180933]
[1766949586475,38.67115657,123.39,123.35,0.05180933]
[1766949601484,36.23,123.35,123.28,38.59]
[1766949602380,0.0604286,123.33,123.3,0.05323549]
[1766949603889,2.36771731,123.39,123.3,41.0109528]
[1766949604080,2.36771731,123.39,123.3,40.95771731]
[1766949604688,7.2997,123.38,123.3,48.26191731]
[1766949604882,0.05580983,123.35,123.33,0.05530525]
[1766949622108,2.36771731,123.39,123.33,35.77530525]
[1766949622109,37.99,123.39,123.33,35.77530525]
[1766949623103,0.05112247,123.37,123.33,35.77530525]
[1766949623619,0.05112247,123.37,123.33,43.07730525]
[1766949633312,0.05112247,123.37,123.34,43.0218]
[1766949639326,0.05112247,123.37,123.34,35.72]
[1766949668540,7.2978,123.42,123.36,36.24516791]
[1766949668837,6.00520147,123.41,123.36,36.24516791]
[1766949669337,36.29,123.43,123.38,34.73]
[1766949669534,0.02756381,123.42,123.39,0.06159859]
[1766949671031,4.42641596,123.45,123.39,0.06159859]
[1766949671032,39.20124805,123.45,123.39,36.3067665]
[1766949672235,2.91124805,123.45,123.41,36.24516791]
[1766949672545,36.29,123.47,123.43,34.73]
[1766949673339,37.80516791,123.47,123.43,34.73]
[1766949673538,1.51516791,123.48,123.43,34.73]
[1766949673741,36.29,123.49,123.43,34.73]
[1766949673742,37.80516791,123.49,123.43,34.73]
[1766949673946,37.80516791,123.49,123.45,0.05779644]
[1766949674430,1.51516791,123.48,123.45,0.05779644]
[1766949675134,36.29,123.49,123.45,0.05779644]
[1766949675336,1.51516791,123.48,123.45,0.05779644]
[1766949675640,37.80516791,123.49,123.45,0.05779644]
[1766949676434,1.51516791,123.48,123.45,0.05779644]
[1766949690059,36.29,123.49,123.45,0.05779644]
[1766949690259,1.51516791,123.48,123.45,0.05779644]
[1766949692663,36.29,123.49,123.45,0.05779644]
[1766949692853,1.51516791,123.48,123.45,0.05779644]
[1766949694559,1.51516791,123.5,123.45,37.20779644]
[1766949695955,36.46516791,123.51,123.45,37.20779644]
[1766949697867,36.99070446,123.53,123.47,37.15]
[1766949698160,38.50587237,123.53,123.49,0.05222992]
[1766949698364,36.99070446,123.53,123.49,0.05222992]
[1766949698562,38.50587237,123.53,123.49,0.05222992]
[1766949699963,1.40910655,123.57,123.5,37.15]
[1766949700157,36.46516791,123.56,123.52,0.05114044]
[1766949700364,36.46516791,123.56,123.53,0.05471366]
[1766949700964,1.51516791,123.55,123.53,0.05471366]
[1766949703165,34.95,123.56,123.53,0.05471366]
[1766949703464,1.51516791,123.57,123.53,0.05471366]
[1766949704054,36.46516791,123.58,123.53,0.05471366]
[1766949704459,1.51516791,123.57,123.53,0.05471366]
[1766949705364,1.40870727,123.62,123.53,0.05471366]
[1766949705365,1.51516791,123.55,123.53,0.05471366]
[1766949705564,1.51516791,123.55,123.53,0.05301968]
[1766949706864,37.39516791,123.56,123.53,0.05301968]
[1766949707267,35.88,123.56,123.53,0.05301968]
[1766949711074,43.1681,123.58,123.53,0.05301968]
[1766949712163,35.88,123.58,123.53,0.05301968]
[1766949713679,35.88,123.58,123.53,34.52301968]
[1766949714378,35.88,123.58,123.53,41.81341968]
[1766949714976,35.88,123.58,123.53,44.17443264]
[1766949715268,34.41,123.61,123.54,34.47]
[1766949715473,34.41,123.61,123.56,0.05881553]
[1766949717676,34.41,123.61,123.56,34.52881553]
[1766949718779,34.41,123.61,123.56,41.81761553]
[1766949719467,34.41,123.61,123.56,34.52881553]
[1766949720677,34.41,123.59,123.52,41.7609]
[1766949721883,0.05794057,123.57,123.54,0.0552353]
[1766949723578,34.46794057,123.57,123.54,0.0552353]
[1766949723773,34.41,123.59,123.54,34.5252353]
[1766949723974,34.41,123.59,123.54,34.47]
[1766949724781,34.41,123.59,123.55,0.05200805]
[1766949726487,34.41,123.61,123.55,36.88302101]
[1766949727280,34.41,123.61,123.55,9.70242101]
[1766949727583,34.41,123.61,123.56,34.47]
[1766949729283,34.41,123.61,123.56,41.7588]
[1766949730483,34.41,123.63,123.57,36.83101296]
[1766949730787,34.41,123.63,123.59,0.05663389]
[1766949739209,36.77101296,123.63,123.56,7.2886]
[1766949739907,36.77101296,123.63,123.56,42.0586]
[1766949740207,0.05512742,123.61,123.58,0.05860021]
[1766949745312,35.58512742,123.61,123.58,0.05860021]
[1766949748913,0.05512742,123.61,123.58,37.18961317]
[1766949749106,2.36101296,123.67,123.58,37.18961317]
[1766949749107,35.53,123.66,123.58,37.18961317]
[1766949749311,35.53,123.66,123.58,37.13101296]
[1766949749512,35.53,123.66,123.6,2.36101296]
[1766949749714,35.53,123.66,123.59,34.77]
[1766949749910,35.53,123.66,123.6,2.36101296]
[1766949750413,35.53,123.66,123.6,9.64751296]
[1766949751223,0.05289769,123.64,123.6,9.64751296]
[1766949752126,0.05289769,123.64,123.61,0.06039062]
[1766949752430,35.58289769,123.64,123.61,0.06039062]
[1766949756225,35.58289769,123.64,123.61,0.00039062]
[1766949756426,35.58289769,123.64,123.56,44.41991296]
[1766949756730,35.53,123.64,123.56,44.41991296]
[1766949757518,0.05231344,123.61,123.59,0.05441969]
[1766949758936,35.58231344,123.61,123.59,0.00441969]
[1766949767235,33.53,123.58,123.51,34.84]
[1766949767437,33.53,123.58,123.51,37.20101296]
[1766949768134,0.06174135,123.56,123.53,0.05663902]
[1766949770546,0.06174135,123.56,123.53,1.56716302]
[1766949776146,0.06174135,123.56,123.53,0.05663902]
[1766949777355,0.06174135,123.56,123.53,1.56716302]
[1766949777857,0.06174135,123.56,123.53,0.05663902]
[1766949784163,0.06174135,123.56,123.53,1.56716302]
[1766949786861,35.700524,123.59,123.53,35.24716302]
[1766949787072,34.19,123.59,123.56,1.510524]
[1766949787462,34.19,123.62,123.56,1.510524]
[1766949787966,0.05672697,123.6,123.58,0.06045632]
[1766949788658,0.05672697,123.6,123.59,1.510524]
[1766949788855,34.19,123.63,123.59,1.510524]
[1766949789864,0.05889254,123.62,123.59,1.510524]
[1766949790163,34.24889254,123.62,123.53,7.2902]
[1766949790365,1.510524,123.58,123.52,33.68]
[1766949790557,35.700524,123.59,123.52,35.190524]
[1766949790762,34.19,123.57,123.52,33.68]
[1766949790957,34.25289144,123.67,123.48,33.68]
[1766949790958,35.700524,123.54,123.48,33.68]
[1766949791163,34.19,123.54,123.5,1.510524]
[1766949791473,0.05570583,123.53,123.51,0.05668879]
[1766949793169,34.19,123.51,123.45,1.510524]
[1766949793568,35.700524,123.5,123.44,35.190524]
[1766949793771,34.19,123.5,123.44,35.190524]
[1766949794073,0.06007332,123.48,123.46,1.56652776]
[1766949794270,34.19,123.52,123.47,1.510524]
[1766949794464,34.19,123.54,123.48,1.510524]
[1766949795065,35.700524,123.54,123.47,1.510524]
[1766949795261,0.06127476,123.52,123.49,0.0560857]
[1766949795572,34.97127476,123.52,123.49,0.0560857]
[1766949798176,34.97127476,123.52,123.42,95.66]
[1766949798177,36.420524,123.5,123.41,40.3376]
[1766949798370,36.420524,123.48,123.41,40.3376]
[1766949798677,36.420524,123.48,123.41,34.550524]
[1766949798877,36.420524,123.48,123.41,33.04]
[1766949799069,36.420524,123.48,123.41,34.550524]
[1766949799268,0.05278077,123.46,123.43,0.0601596]
[1766949799879,0.05278077,123.46,123.43,1.5706836]
[1766949800082,36.420524,123.51,123.44,1.510524]
[1766949800572,34.91,123.51,123.45,1.510524]
[1766949800978,34.91,123.51,123.46,1.510524]
[1766949801177,0.05860491,123.5,123.47,0.06129893]
[1766949804878,0.05860491,123.5,123.48,1.510524]
[1766949805073,34.91,123.53,123.48,1.510524]